fUSD/lending_fUSD_20260324
["ID","MTS","AMOUNT","RATE_DAILY","PERIOD"]
[408853149,1774341652339,-2618.93604658,0.00047143,120]
[408853150,1774341652373,-172.51492183,0.00047143,60]
[408853151,1774341652407,-3060.43562522,0.00047143,120]
[408853152,1774341652441,-214.34846845,0.00047143,30]
[408853153,1774341652477,-1497.19196132,0.00047143,120]
[408853154,1774341652509,-1417.88184429,0.00047143,120]
[408853155,1774341652541,-1028.66262815,0.00047143,30]
[408853156,1774341652576,-813.32734549,0.00047143,30]
[408853157,1774341652611,-1333.06882024,0.00047143,120]
[408853158,1774341652645,-1119.79523385,0.00047143,120]
[408853159,1774341652676,-675.41990924,0.00047143,120]
[408853160,1774341652708,-687.7772551,0.00047143,120]
[408853161,1774341652742,-165.99428588,0.00047143,30]
[408853162,1774341652776,-500.0,0.00047143,120]
[408853163,1774341652819,-500.0,0.00047143,120]
[408853164,1774341652856,-500.0,0.00047143,120]
[408853165,1774341652890,-500.0,0.00047143,120]
[408853166,1774341652929,-500.0,0.00047143,120]
[408853167,1774341652972,-500.0,0.00047143,120]
[408853168,1774341653008,-500.0,0.00047143,120]
[408853169,1774341653042,-546.20397128,0.00047143,30]
[408853170,1774341653081,-500.0,0.00047143,120]
[408853171,1774341653118,-500.0,0.00047143,120]
[408853172,1774341653152,-771.75123144,0.00047143,30]
[408853173,1774341653191,-500.0,0.00047143,120]
[408853174,1774341653224,-2534.6903884,0.00047143,30]
[408853175,1774341653255,-323.36119701,0.00047143,120]
[408853176,1774341653290,-500.0,0.00047143,120]
[408853177,1774341653322,-1787.36362656,0.00047143,30]
[408853178,1774341653354,-500.0,0.00047143,120]
[408853179,1774341653390,-500.0,0.00047143,120]
[408853180,1774341653423,-2076.25795952,0.00047143,120]
[408853181,1774341653454,-489.7000821,0.00047143,120]
[408853182,1774341653489,-500.0,0.00047143,120]
[408853183,1774341653522,-500.0,0.00047143,120]
[408853184,1774341653556,-500.0,0.00047143,120]
[408853185,1774341653595,-500.0,0.00047143,120]
[408853186,1774341653633,-500.0,0.00047143,120]
[408853187,1774341653667,-794.14223278,0.00047143,120]
[408853188,1774341653701,-500.0,0.00047143,120]
[408853189,1774341653735,-1860.50171874,0.00047143,120]
[408853190,1774341653769,-500.0,0.00047143,120]
[408853191,1774341653806,-342.68,0.00047143,120]
[408853192,1774341653839,-174.16106588,0.00047143,30]
[408853193,1774341653874,-1625.15166522,0.00047143,120]
[408853194,1774341653907,-1075.7059328,0.00047143,120]
[408853195,1774341653938,-274.04081436,0.00047143,120]
[408853196,1774341653967,-2267.02808732,0.00047143,30]
[408853197,1774341653999,-2863.21735727,0.00047143,120]
[408853198,1774341654029,-231.91653695,0.00047143,90]
[408853199,1774341654060,-1311.40327905,0.00047143,120]
[408853200,1774341654094,-1534.34901602,0.00047143,45]
[408853201,1774341654130,-1599.29220412,0.00047143,30]
[408853202,1774341654164,-162.8,0.00047143,45]
[408853203,1774341654201,-162.8,0.00047143,45]
[408853204,1774341654235,-162.8,0.00047143,45]
[408853205,1774341654270,-162.8,0.00047143,45]
[408853206,1774341654306,-162.8,0.00047143,45]
[408853207,1774341654340,-577.3535176,0.00047143,120]
[408853208,1774341654374,-500.0,0.00047143,120]
[408853209,1774341654408,-591.19617285,0.00047143,120]
[408853210,1774341654441,-4006.59525805,0.00047143,120]
[408853211,1774341654540,-224.113892,0.00047143,120]
[408853212,1774341654577,-500.0,0.00047143,120]
[408853213,1774341654611,-230.79209,0.00047143,120]
[408853214,1774341654657,-500.0,0.00047143,120]
[408853215,1774341654691,-500.0,0.00047143,120]
[408853216,1774341654727,-236.37656623,0.00047143,120]
[408853217,1774341654761,-267.90875128,0.00047143,120]
[408853218,1774341654792,-205.3734723,0.00047143,120]
[408853219,1774341654826,-500.0,0.00047143,120]
[408853220,1774341654859,-500.0,0.00047143,120]
[408853221,1774341654895,-500.0,0.00047143,120]
[408853222,1774341654926,-500.0,0.00047143,120]
[408853223,1774341654959,-500.0,0.00047143,120]
[408853224,1774341654992,-622.51768159,0.00047143,120]
[408853225,1774341655021,-169.69532754,0.00047143,120]
[408853226,1774341655054,-1000.21,0.00047143,30]
[408853227,1774341655086,-2000.0,0.00047143,120]
[408853228,1774341655118,-1576.72154622,0.00047143,30]
[408853229,1774341655153,-1000.0,0.00047143,120]
[408853230,1774341655193,-102377.21004936,0.00047143,30]
[408853231,1774341655228,-48574.26337377,0.00047143,30]
[408853232,1774341655262,-44743.70989406,0.00047143,30]
[408853233,1774341655296,-6135.88441452,0.00047143,30]
[408853234,1774341655329,-1633585.15643372,0.00047143,30]
[408853235,1774341655362,-14801.45346379,0.00047143,30]
[408853236,1774341655399,-22088.74366005,0.00047143,30]
[408853237,1774341655434,-11998.74204485,0.00047143,30]
[408853238,1774341655467,-111054.96718865,0.00047143,30]
[408853239,1774341655501,-22500.0,0.00047143,10]
[408853240,1774341655544,-1863125.73753486,0.00047143,30]
[408853241,1774341664743,-929487.6097679,0.00047143,30]
[408853242,1774341664771,-10076.28098779,0.00047143,30]
[408853243,1774341664799,-4642.31753143,0.00047143,30]
[408853244,1774341664827,-1130.40355339,0.00047143,120]
[408853245,1774341664858,-40699.25249574,0.00047143,30]
[408853246,1774341664889,-7470.57712808,0.00047143,90]
[408853247,1774341664919,-871.52,0.00047143,120]
[408853248,1774341664950,-20989.92,0.00047143,40]
[408853249,1774341664982,-50000.0,0.00047143,30]
[408853250,1774341665010,-50000.0,0.00047143,45]
[408853251,1774341665040,-50000.0,0.00047143,30]
[408853252,1774341665076,-50000.0,0.00047143,57]
[408853253,1774341665112,-50000.0,0.00047143,58]
[408853254,1774341665141,-117265.93677699,0.00047143,60]
[408853255,1774341665170,-5000.0,0.00047143,38]
[408853256,1774341665203,-5511.0,0.00047143,60]
[408853257,1774341665231,-46388.36922752,0.00047143,30]
[408853258,1774341665259,-5061.68,0.00047143,30]
[408853259,1774341665288,-12081.10673561,0.00047143,120]
[408853260,1774341665317,-4050.87519905,0.00047143,120]
[408853261,1774341665344,-400.0,0.00047143,120]
[408853262,1774341665373,-103424.12586731,0.00047143,60]
[408853263,1774341665401,-1000.0,0.00047143,120]
[408853264,1774341665428,-1000.0,0.00047143,120]
[408853265,1774341665454,-1000.0,0.00047143,120]
[408853266,1774341665483,-1000.0,0.00047143,120]
[408853267,1774341665509,-1000.0,0.00047143,120]
[408853268,1774341665537,-1000.0,0.00047143,120]
[408853269,1774341665564,-1000.0,0.00047143,120]
[408853270,1774341665592,-1000.0,0.00047143,120]
[408853271,1774341665621,-1000.0,0.00047143,120]
[408853272,1774341665651,-1290.56,0.00047143,120]
[408853273,1774341665678,-247.70460823,0.00047143,30]
[408853274,1774341665706,-262.0,0.00047143,120]
[408853275,1774341666095,-196.65636891,0.00047143,120]
[408853276,1774341666125,-2616.7212041,0.00047143,120]
[408853277,1774341666155,-171.89578484,0.00047143,120]
[408853278,1774341666188,-226.68024098,0.00047143,120]
[408853279,1774341666216,-900.0,0.00047143,31]
[408853280,1774341666249,-500.0,0.00047143,120]
[408853281,1774341666284,-500.0,0.00047143,120]
[408853282,1774341666317,-500.0,0.00047143,120]
[408853283,1774341666349,-210.22906567,0.00047143,120]
[408853284,1774341666380,-251.98112861,0.00047143,120]
[408853285,1774341666409,-288.3230645,0.00047143,60]
[408853286,1774341666439,-1335.8634617,0.00047143,120]
[408853287,1774341666467,-850.0,0.00047143,30]
[408853288,1774341666495,-188.68725,0.00047143,45]
[408853289,1774341666523,-188.68725,0.00047143,45]
[408853290,1774341666553,-188.68725,0.00047143,45]
[408853291,1774341666582,-265.0,0.00047143,120]
[408853292,1774341666611,-7184.64057174,0.00047143,120]
[408853293,1774341666642,-7841.07819569,0.00047143,120]
[408853294,1774341666672,-298.26,0.00047143,120]
[408853295,1774341666701,-161.0,0.00047143,120]
[408853296,1774341666731,-542.41552563,0.00047143,90]
[408853297,1774341666758,-1196.83312026,0.00047143,120]
[408853298,1774341666788,-1470.93341361,0.00047143,120]
[408853299,1774341666820,-168.41410962,0.00047143,120]
[408853300,1774341666853,-1118.77696181,0.00047143,30]
[408853301,1774341666883,-606.0,0.00047143,120]
[408853302,1774341666911,-8364.835321,0.00047143,120]
[408853303,1774341666939,-3773.17039631,0.00047143,30]
[408853304,1774341666966,-154.02945531,0.00047143,30]
[408853305,1774341666995,-1796.26453155,0.00047143,30]
[408853306,1774341667023,-1793.70498701,0.00047143,30]
[408853307,1774341667050,-1681.18979368,0.00047143,30]
[408853308,1774341667078,-20000.0,0.00047143,30]
[408853309,1774341667105,-20000.0,0.00047143,75]
[408853310,1774341667133,-25577.06667621,0.00047143,120]
[408853311,1774341667161,-3032.91142653,0.00047143,120]
[408853312,1774341667190,-215.98941744,0.00047143,30]
[408853313,1774341667219,-200.0,0.00047143,30]
[408853314,1774341667247,-300.0,0.00047143,30]
[408853315,1774341667278,-300.0,0.00047143,30]
[408853316,1774341667308,-300.0,0.00047143,30]
[408853317,1774341667336,-300.0,0.00047143,30]
[408853318,1774341667363,-300.0,0.00047143,30]
[408853319,1774341667389,-300.0,0.00047143,30]
[408853320,1774341667416,-300.0,0.00047143,30]
[408853321,1774341667443,-300.0,0.00047143,30]
[408853322,1774341667471,-300.0,0.00047143,30]
[408853323,1774341667500,-300.0,0.00047143,30]
[408853324,1774341667527,-300.0,0.00047143,30]
[408853325,1774341667554,-300.0,0.00047143,30]
[408853326,1774341667581,-300.0,0.00047143,30]
[408853327,1774341667610,-300.0,0.00047143,30]
[408853328,1774341667641,-300.0,0.00047143,30]
[408853329,1774341667670,-12000.0,0.00047143,120]
[408853330,1774341667700,-3774.0,0.00047143,60]
[408853331,1774341667730,-4153.80647001,0.00047143,120]
[408853332,1774341667759,-1374.3,0.00047143,60]
[408853333,1774341667786,-4423.65547985,0.00047143,30]
[408853334,1774341667814,-2528.33695219,0.00047143,120]
[408853335,1774341667842,-725.06,0.00047143,120]
[408853336,1774341667869,-350.89349451,0.00047143,30]
[408853337,1774341667896,-666.88563,0.00047143,120]
[408853338,1774341667924,-736.59,0.00047143,120]
[408853339,1774341667951,-508.0,0.00047143,120]
[408853340,1774341667977,-30427.21237849,0.00047143,30]
[408853341,1774341668051,-571.43852745,0.00047143,120]
[408853342,1774341668079,-500.0,0.00047143,120]
[408853343,1774341668111,-500.0,0.00047143,120]
[408853344,1774341668138,-614.98440743,0.00047143,120]
[408853345,1774341668165,-693.86811164,0.00047143,120]
[408853346,1774341668193,-500.0,0.00047143,120]
[408853347,1774341668221,-500.0,0.00047143,120]
[408853348,1774341668249,-500.0,0.00047143,120]
[408853349,1774341668278,-500.0,0.00047143,120]
[408853350,1774341668304,-477.47,0.00047143,120]
[408853351,1774341668330,-49182.52242462,0.00047143,60]
[408853352,1774341668357,-23095.3569659,0.00047143,60]
[408853353,1774341668384,-500.0,0.00047143,120]
[408853354,1774341668416,-165.0,0.00047143,10]
[408853355,1774341668443,-165.0,0.00047143,10]
[408853356,1774341668469,-165.0,0.00047143,120]
[408853357,1774341668495,-165.0,0.00047143,120]
[408853358,1774341668521,-170.0,0.00047143,120]
[408853359,1774341668547,-170.0,0.00047143,120]
[408853360,1774341668579,-170.0,0.00047143,120]
[408853361,1774341668606,-165.0,0.00047143,120]
[408853362,1774341668633,-165.0,0.00047143,120]
[408853363,1774341668660,-165.0,0.00047143,120]
[408853364,1774341668689,-165.0,0.00047143,120]
[408853365,1774341668723,-172.91837775,0.00047143,120]
[408853366,1774341668749,-249.55,0.00047143,120]
[408853367,1774341668775,-100000.000016,0.00047143,32]
[408853368,1774341668800,-20709.89827644,0.00047143,120]
[408853369,1774341668828,-704.0,0.00047143,30]
[408853370,1774341668854,-1545225.0,0.00047143,120]
[408853371,1774341668883,-1494896.08663597,0.00047143,90]
[408853372,1774341673487,-706648.91336403,0.00047143,90]
[408853373,1774341673516,-1000.0,0.00047143,60]
[408853374,1774341673541,-1000.0,0.00047143,50]
[408853375,1774341673567,-1000.0,0.00047143,40]
[408853376,1774341673592,-1000.0,0.00047143,30]
[408853377,1774341673617,-540.71,0.00047143,120]
[408853378,1774341673642,-504.30702764,0.00047143,120]
[408853379,1774341673667,-517.03172493,0.00047143,120]
[408853380,1774341673691,-16808.28656231,0.00047143,120]
[408853381,1774341673716,-507.13301242,0.00047143,120]
[408853382,1774341673741,-25000.0,0.00047143,90]
[408853383,1774341673767,-1402.87974885,0.00047143,120]
[408853384,1774341673792,-500.0,0.00047143,120]
[408853385,1774341673816,-500.0,0.00047143,120]
[408853386,1774341673840,-500.0,0.00047143,120]
[408853387,1774341673866,-500.0,0.00047143,120]
[408853388,1774341673890,-500.0,0.00047143,120]
[408853389,1774341673914,-500.0,0.00047143,120]
[408853390,1774341673938,-500.0,0.00047143,120]
[408853391,1774341673963,-500.0,0.00047143,120]
[408853392,1774341673988,-500.0,0.00047143,120]
[408853393,1774341674012,-500.0,0.00047143,120]
[408853394,1774341674038,-500.0,0.00047143,120]
[408853395,1774341674062,-500.0,0.00047143,120]
[408853396,1774341674086,-500.0,0.00047143,120]
[408853397,1774341674111,-500.0,0.00047143,120]
[408853398,1774341674137,-500.0,0.00047143,120]
[408853399,1774341674163,-574.53180043,0.00047143,120]
[408853400,1774341674191,-13687.473684,0.00047143,120]
[408853401,1774341674217,-15066.80082406,0.00047143,30]
[408853402,1774341674243,-582.07500689,0.00047143,120]
[408853403,1774341674268,-11668.0,0.00047143,30]
[408853404,1774341674292,-1000000.0,0.00047143,120]
[408853405,1774341674316,-2350.0,0.00047143,30]
[408853406,1774341674340,-5000.0,0.00047143,39]
[408853407,1774341674364,-36861.46886507,0.00047143,30]
[408853408,1774341674389,-313.09281458,0.00047143,120]
[408853409,1774341674415,-1210.0,0.00047143,60]
[408853410,1774341674445,-50000.0,0.00047143,63]
[408853411,1774341674473,-50000.0,0.00047143,64]
[408853412,1774341674500,-6000.0,0.00047143,120]
[408853413,1774341674526,-15957.99444634,0.00047143,30]
[408853414,1774341674552,-3027299.30111845,0.00047143,30]
[408853415,1774341678786,-459576.0491234,0.00047143,30]
[408853416,1774341678816,-164696.89407319,0.00047143,91]
[408853417,1774341678844,-50462.4614649,0.00047143,30]
[408853418,1774341678871,-231796.37784188,0.00047143,30]
[408853419,1774341678897,-562789.75198448,0.00047143,30]
[408853420,1774341678922,-2838963.39900546,0.00047143,30]
[408853421,1774341678947,-295819.06358803,0.00047143,30]
[408853422,1774341678972,-21994.47543592,0.00047143,35]
[408853423,1774341678997,-902.59772656,0.00047143,120]
[408853424,1774341679021,-30265.76168308,0.00047143,120]
[408853425,1774341679047,-100000.0,0.00047143,30]
[408853426,1774341679074,-242733.1680731,0.00047143,30]
[408853427,1774341682559,-757266.8319269,0.00047143,30]
[408853428,1774341682585,-1300480.00000105,0.00047143,120]
[408853429,1774341682609,-295.63,0.00047143,120]
[408853430,1774341682634,-5079.85878903,0.00047143,120]
[408853431,1774341682659,-15107.94183945,0.00047143,60]
[408853432,1774341682684,-5161.0,0.00047143,120]
[408853433,1774341682710,-5000.0,0.00047143,60]
[408853434,1774341682735,-5000.0,0.00047143,30]
[408853435,1774341682764,-5000.0,0.00047143,30]
[408853436,1774341682791,-3450.0,0.00047143,30]
[408853437,1774341682816,-5000.0,0.00047143,120]
[408853438,1774341682842,-5000.0,0.00047143,120]
[408853439,1774341682868,-3450.0,0.00047143,120]
[408853440,1774341682894,-500.0,0.00047143,120]
[408853441,1774341682921,-500.0,0.00047143,30]
[408853442,1774341682949,-50000.0,0.00047143,49]
[408853443,1774341682980,-50000.0,0.00047143,50]
[408853444,1774341683008,-50000.0,0.00047143,51]
[408853445,1774341683039,-50000.0,0.00047143,52]
[408853446,1774341683064,-55000.0,0.00047143,120]
[408853447,1774341683089,-682.14525692,0.00047143,120]
[408853448,1774341683114,-1000.0,0.00047143,30]
[408853449,1774341683145,-2627026.59218665,0.00047143,120]
[408853450,1774341686118,-5000000.0,0.00047143,120]
[408853451,1774341690657,-5000000.0,0.00047143,120]
[408853452,1774341694352,-2643484.75781335,0.00047143,120]
[408853453,1774341694378,-194.69058058,0.00047143,30]
[408853454,1774341694405,-194.69058058,0.00047143,30]
[408853455,1774341694430,-194.69058058,0.00047143,30]
[408853456,1774341694456,-194.69058058,0.00047143,30]
[408853457,1774341694481,-194.69058058,0.00047143,30]
[408853458,1774341694507,-194.69058058,0.00047143,30]
[408853459,1774341694532,-194.69058058,0.00047143,30]
[408853460,1774341694556,-194.69058058,0.00047143,30]
[408853461,1774341694580,-194.69058058,0.00047143,30]
[408853462,1774341694605,-176.24603551,0.00047143,30]
[408853463,1774341694630,-188.52660473,0.00047143,30]
[408853464,1774341694654,-475.40437882,0.00047143,120]
[408853465,1774341694678,-2513.0,0.00047143,30]
[408853466,1774341694703,-2513.0,0.00047143,120]
[408853467,1774341694727,-505.78824698,0.00047143,120]
[408853468,1774341694752,-1161.93158646,0.00047143,60]
[408853469,1774341694777,-500.0,0.00047143,120]
[408853470,1774341694802,-500.0,0.00047143,120]
[408853471,1774341694827,-500.0,0.00047143,120]
[408853472,1774341694857,-500.0,0.00047143,120]
[408853473,1774341694884,-500.0,0.00047143,120]
[408853474,1774341694912,-500.0,0.00047143,120]
[408853475,1774341694939,-500.0,0.00047143,120]
[408853476,1774341694963,-500.0,0.00047143,120]
[408853477,1774341694989,-500.0,0.00047143,120]
[408853478,1774341695014,-500.0,0.00047143,120]
[408853479,1774341695039,-500.0,0.00047143,120]
[408853480,1774341695065,-500.0,0.00047143,120]
[408853481,1774341695090,-500.0,0.00047143,120]
[408853482,1774341695115,-500.0,0.00047143,120]
[408853483,1774341695140,-263.06754924,0.00047143,120]
[408853484,1774341695563,-1000.0,0.00047143,31]
[408853485,1774341695588,-1000.0,0.00047143,31]
[408853486,1774341695612,-1000.0,0.00047143,31]
[408853487,1774341695636,-1000.0,0.00047143,31]
[408853488,1774341695660,-1000.0,0.00047143,31]
[408853489,1774341695685,-1000.0,0.00047143,31]
[408853490,1774341695711,-1000.0,0.00047143,31]
[408853491,1774341695737,-489.62742027,0.00047143,120]
[408853492,1774341695761,-1000.0,0.00047143,31]
[408853493,1774341695785,-1000.0,0.00047143,31]
[408853494,1774341695809,-500.0,0.00047143,120]
[408853495,1774341695834,-500.0,0.00047143,120]
[408853496,1774341695858,-500.0,0.00047143,120]
[408853497,1774341695883,-500.0,0.00047143,120]
[408853498,1774341695907,-500.0,0.00047143,120]
[408853499,1774341695934,-500.0,0.00047143,120]
[408853500,1774341695960,-500.0,0.00047143,120]
[408853501,1774341695985,-500.0,0.00047143,120]
[408853502,1774341696010,-500.0,0.00047143,120]
[408853503,1774341696036,-551.75491604,0.00047143,120]
[408853504,1774341696061,-182.19388864,0.00047143,120]
[408853505,1774341696088,-186.39231547,0.00047143,120]
[408853506,1774341696115,-177.5364203,0.00047143,120]
[408853507,1774341696142,-1500.0,0.00047143,30]
[408853508,1774341696168,-1500.0,0.00047143,120]
[408853509,1774341696200,-500.0,0.00047143,120]
[408853510,1774341696230,-500.0,0.00047143,120]
[408853511,1774341696259,-500.0,0.00047143,120]
[408853512,1774341696288,-500.0,0.00047143,120]
[408853513,1774341696318,-500.0,0.00047143,120]
[408853514,1774341696345,-214.10021525,0.00047143,120]
[408853515,1774341696370,-301.81901268,0.00047143,60]
[408853516,1774341696395,-153.63561,0.00047143,60]
[408853517,1774341696420,-204.72428,0.00047143,60]
[408853518,1774341696444,-199.57215,0.00047143,45]
[408853519,1774341696470,-153.63561,0.00047143,60]
[408853520,1774341696496,-199.57215,0.00047143,45]
[408853521,1774341696520,-204.72428,0.00047143,60]
[408853522,1774341696546,-153.63561,0.00047143,60]
[408853523,1774341696572,-204.72428,0.00047143,60]
[408853524,1774341696597,-199.57215,0.00047143,45]
[408853525,1774341696622,-199.57215,0.00047143,45]
[408853526,1774341696646,-204.72428,0.00047143,60]
[408853527,1774341696671,-199.57215,0.00047143,45]
[408853528,1774341696696,-204.72428,0.00047143,60]
[408853529,1774341696721,-180.0,0.00047143,120]
[408853530,1774341696747,-762.92446125,0.00047143,30]
[408853531,1774341696772,-729.14,0.00047143,30]
[408853532,1774341696803,-1000.0,0.00047143,30]
[408853533,1774341696836,-1000.0,0.00047143,30]
[408853534,1774341696863,-180.45928412,0.00047143,120]
[408853535,1774341696888,-194.64969302,0.00047143,30]
[408853536,1774341696914,-2936.49735111,0.00047143,120]
[408853537,1774341696939,-214.10944169,0.00047143,120]
[408853538,1774341696964,-176.83022949,0.00047143,120]
[408853539,1774341696988,-3636.81380117,0.00047143,120]
[408853540,1774341697013,-196.53594491,0.00047143,30]
[408853541,1774341697037,-917.3199217,0.00047143,30]
[408853542,1774341697061,-1695.96464274,0.00047143,120]
[408853543,1774341697090,-244.69183881,0.00047143,120]
[408853544,1774341697119,-192.19223309,0.00047143,120]
[408853545,1774341697147,-2898.60352019,0.00047143,30]
[408853546,1774341697191,-3243.00618525,0.00047143,120]
[408853547,1774341697232,-222.37930338,0.00047143,30]
[408853548,1774341697261,-235.0442149,0.00047143,120]
[408853549,1774341697290,-1878.25127619,0.00047143,120]
[408853550,1774341697321,-3070.11375883,0.00047143,120]
[408853551,1774341697349,-311.37846983,0.00047143,30]
[408853552,1774341697378,-298.90566892,0.00047143,30]
[408853553,1774341697407,-206.03256467,0.00047143,120]
[408853554,1774341697435,-191.70547223,0.00047143,120]
[408853555,1774341697463,-168.98308818,0.00047143,120]
[408853556,1774341697497,-1197.90863392,0.00047143,120]
[408853557,1774341697527,-681.99178778,0.00047143,30]
[408853558,1774341697555,-5107.09668857,0.00047143,10]
[408853559,1774341697583,-1806.96227671,0.00047143,120]
[408853560,1774341697614,-549.0,0.00047143,30]
[408853561,1774341697644,-1203.4962285,0.00047143,120]
[408853562,1774341697673,-293.28306065,0.00047143,120]
[408853563,1774341697701,-90829.22426463,0.00047143,30]
[408853564,1774341697730,-151.93943855,0.00047143,30]
[408853565,1774341697762,-95000.0,0.00047143,120]
[408853566,1774341697793,-50000.0,0.00047143,65]
[408853567,1774341697823,-50000.0,0.00047143,66]
[408853568,1774341697854,-50000.0,0.00047143,67]
[408853569,1774341697887,-50000.0,0.00047143,68]
[408853570,1774341697917,-1258.8089278,0.00047143,120]
[408853571,1774341697945,-5823.61,0.00047143,120]
[408853572,1774341697973,-5000.0,0.00047143,31]
[408853573,1774341698015,-476.59241718,0.00047143,120]
[408853574,1774341698044,-906.370275,0.00047143,120]
[408853575,1774341698073,-717.56468455,0.00047143,120]
[408853576,1774341698102,-70000.0,0.00047143,30]
[408853577,1774341698363,-538.24960278,0.00047143,120]
[408853578,1774341698394,-97072.77177459,0.00047143,60]
[408853579,1774341698424,-300000.0,0.00047143,120]
[408853580,1774341698453,-191.81140937,0.00047143,120]
[408853581,1774341698483,-306.53959456,0.00047143,31]
[408853582,1774341698513,-230.86095902,0.00047143,60]
[408853583,1774341698543,-177.50678,0.00047143,45]
[408853584,1774341698574,-177.50678,0.00047143,45]
[408853585,1774341698609,-177.50678,0.00047143,45]
[408853586,1774341698640,-5265.0676091,0.00047143,120]
[408853587,1774341698670,-548.57092071,0.00047143,30]
[408853588,1774341698701,-241.0,0.00047143,120]
[408853589,1774341698732,-165.83687204,0.00047143,120]
[408853590,1774341698763,-1259.0,0.00047143,120]
[408853591,1774341698794,-274.01075023,0.00047143,120]
[408853592,1774341698826,-252.56499813,0.00047143,120]
[408853593,1774341698862,-500.0,0.00047143,120]
[408853594,1774341698894,-500.0,0.00047143,120]
[408853595,1774341698926,-608.05983827,0.00047143,120]
[408853596,1774341698957,-649.19324147,0.00047143,120]
[408853597,1774341698986,-414.968757,0.00047143,120]
[408853598,1774341699016,-164.8452931,0.00047143,120]
[408853599,1774341699052,-1383.6722,0.00047143,120]
[408853600,1774341699099,-1087.47300631,0.00047143,30]
[408853601,1774341699129,-474.18492801,0.00047143,120]
[408853602,1774341699162,-3101.03794435,0.00047143,120]
[408853603,1774341699193,-374.96429776,0.00047143,120]
[408853604,1774341699222,-974.9036149,0.00047143,120]
[408853605,1774341699253,-1870.0,0.00047143,30]
[408853606,1774341699283,-747.93797773,0.00047143,30]
[408853607,1774341699314,-155.04074252,0.00047143,20]
[408853608,1774341699345,-209.42824289,0.00047143,30]
[408853609,1774341699380,-156.20906541,0.00047143,120]
[408853610,1774341699411,-5047.64516192,0.00047143,15]
[408853611,1774341699445,-163.94325381,0.00047143,30]
[408853612,1774341699476,-3267.62317287,0.00047143,30]
[408853613,1774341699508,-956.30849304,0.00047143,49]
[408853614,1774341699539,-524.4530923,0.00047143,120]
[408853615,1774341699569,-10148.59383771,0.00047143,90]
[408853616,1774341699598,-723.53539234,0.00047143,30]
[408853617,1774341699627,-222.04837484,0.00047143,120]
[408853618,1774341699657,-316.70529112,0.00047143,30]
[408853619,1774341699686,-660.53,0.00047143,120]
[408853620,1774341699717,-72000.0,0.00047143,60]
[408853621,1774341699750,-45123.14,0.00047143,120]
[408853622,1774341699780,-7699.38399053,0.00047143,30]
[408853623,1774341699809,-153.0,0.00047143,120]
[408853624,1774341699838,-788.76,0.00047143,120]
[408853625,1774341699869,-2632.40089016,0.00047143,120]
[408853626,1774341699898,-440.092754,0.00047143,90]
[408853627,1774341699928,-527.69071649,0.00047143,120]
[408853628,1774341699959,-4000.51679434,0.00047143,120]
[408853629,1774341699990,-437.929613,0.00047143,120]
[408853630,1774341700022,-5406.0,0.00047143,120]
[408853631,1774341700054,-253.9962827,0.00047143,31]
[408853632,1774341700085,-387403.65615665,0.00047143,30]
[408853633,1774341700115,-3043.83739286,0.00047143,120]
[408853634,1774341700145,-14672.0,0.00047143,30]
[408853635,1774341700176,-1037.3212339,0.00047143,120]
[408853636,1774341700209,-416.5,0.00047143,30]
[408853637,1774341700242,-1264.85617149,0.00047143,120]
[408853638,1774341700278,-1038.02251973,0.00047143,120]
[408853639,1774341700314,-520.75970004,0.00047143,30]
[408853640,1774341700345,-1096.93,0.00047143,120]
[408853641,1774341700376,-160.74756087,0.00047143,120]
[408853642,1774341700409,-2478.15524732,0.00047143,120]
[408853643,1774341700441,-1482.49390381,0.00047143,120]
[408853644,1774341700472,-801.25681862,0.00047143,120]
[408853645,1774341700504,-950.0,0.00047143,120]
[408853646,1774341700537,-100000.0,0.00047143,90]
[408853647,1774341700568,-100000.0,0.00047143,80]
[408853648,1774341700598,-40450.0,0.00047143,100]